[Event "FIDE WCCC U8 2018"]
[Site "Santiago de Compostela"]
[Date "2018.11.09"]
[Round "5"]
[White "Lu, Miaoyi"]
[Black "Chennareddy, Yuvraj"]
[Result "0-1"]
[ECO "E04"]
[WhiteElo "1717"]
[BlackElo "1497"]
[Annotator "NA RC"]
[PlyCount "80"]
[EventDate "2018.11.04"]
[EventType "swiss"]
[EventCountry "ESP"]
[SourceTitle "playchess.com"]
[Source "ChessBase"]
[SourceQuality "1"]
[TimeControl "40/5400+30:1800+30"]

1. d4 {[%emt 0:00:00]} d5 {[%emt 0:00:00]} 2. c4 {[%emt 0:00:00]} e6 {[%emt 0:00:32]} 3. Nf3 {[%emt 0:00:00]} Nf6 {[%emt 0:00:22]} 4. g3 {[%emt 0:00:00]} dxc4 {[%emt 0:00:33]} 5. Bg2 {[%emt 0:00:03]} a6 {[%emt 0:00:19]} 6. O-O {[%emt 0:00:16]} Nc6 {[%emt 0:00:18]} 7. e3 {[%emt 0:00:34]} Bd7 {[%emt 0:00:35]} 8. Qe2 {[%emt 0:01:18]} b5 {[%emt 0:02:32]} 9. e4 {[%emt 0:16:09]} Be7 {[%emt 0:08:21]} 10. Bf4 {[%emt 0:05:59]} O-O {[%emt 0:02:47]} 11. Nbd2 {[%emt 0:04:31]} Bc8 {[%emt 0:10:34]} 12. Be3 {[%emt 0:03:22]} Bb7 {[%emt 0:01:12]} 13. Rfc1 {[%emt 0:09:11]} Nb4 {[%emt 0:05:09]} 14. Ne5 {[%emt 0:02:26]} c5 {[%emt 0:01:10]} 15. dxc5 {[%emt 0:01:19]} Qc7 {[%emt 0:00:18]} 16. Bf4 {[%emt 0:08:46]} g5 {[%emt 0:00:55]} 17. Ng6 {[%emt 0:05:52]} gxf4 {[%emt 0:00:20]} 18. Nxf8 {[%emt 0:00:24]} Rxf8 {[%emt 0:02:13]} 19. b3 {[%emt 0:11:29]} fxg3 {[%emt 0:03:44]} 20. hxg3 {[%emt 0:00:14]} Nd3 {[%emt 0:02:41]} 21. Rc2 {[%emt 0:05:00]} Bxc5 {[%emt 0:04:30]} 22. bxc4 {[%emt 0:04:12]} Qxg3 {[%emt 0:03:40]} 23. Rc3 {[%emt 0:05:47]} Bxf2+ {[%emt 0:08:18]} 24. Kf1 {[%emt 0:00:08]} Ng4 {[%emt 0:01:05]} 25. Qxd3 {[%emt 0:02:51]} Ne3+ {[%emt 0:02:18]} 26. Ke2 {[%emt 0:01:01]} Qxg2 {[%emt 0:00:44]} 27. Qd7 {[%emt 0:01:34]} Bc8 {[%emt 0:06:44]} 28. Qd4 {[%emt 0:01:37]} Nd5 {[%emt 0:03:44]} 29. Qxf2 {[%emt 0:01:15]} Nxc3+ {[%emt 0:00:33]} 30. Ke3 {[%emt 0:00:31]} Qxf2+ {[%emt 0:00:19]} 31. Kxf2 {[%emt 0:00:04]} bxc4 {[%emt 0:01:08]} 32. Rc1 {[%emt 0:01:06]} Rd8 {[%emt 0:00:23]} 33. Nxc4 {[%emt 0:02:01]} Nxe4+ {[%emt 0:02:05]} 34. Ke3 {[%emt 0:00:12]} Nf6 {[%emt 0:00:43]} 35. Rg1+ {[%emt 0:01:26]} Kf8 {[%emt 0:01:41]} 36. Ne5 {[%emt 0:00:14]} Rd5 {[%emt 0:00:57]} 37. Kf4 {[%emt 0:00:28]} Nh5+ {[%emt 0:00:09]} 38. Ke4 {[%emt 0:02:28]} f5+ {[%emt 0:00:10]} 39. Kf3 {[%emt 0:00:26]} Rxe5 {[%emt 0:00:09]} 40. Rh1 {[%emt 0:00:00]} Bb7+ {[%emt 0:00:00]} 0-1

[Event "FIDE WCCC U8 2018"]
[Site "Santiago de Compostela"]
[Date "2018.11.09"]
[Round "5"]
[White "Usov, Aleksandr E."]
[Black "Sevig, Mert Can"]
[Result "1-0"]
[ECO "E63"]
[WhiteElo "1640"]
[BlackElo "1442"]
[Annotator "NA RC"]
[PlyCount "85"]
[EventDate "2018.11.04"]
[EventType "swiss"]
[EventCountry "ESP"]
[SourceTitle "playchess.com"]
[Source "ChessBase"]
[SourceQuality "1"]
[TimeControl "40/5400+30:1800+30"]

1. d4 {[%emt 0:00:00]} Nf6 {[%emt 0:00:00]} 2. c4 {[%emt 0:00:15]} g6 {[%emt 0:00:21]} 3. g3 {[%emt 0:00:09]} Bg7 {[%emt 0:00:28]} 4. Bg2 {[%emt 0:01:05]} O-O {[%emt 0:01:21]} 5. Nc3 {[%emt 0:00:06]} d6 {[%emt 0:00:13]} 6. Nf3 {[%emt 0:00:36]} Nc6 {[%emt 0:01:03]} 7. O-O {[%emt 0:00:44]} a6 {[%emt 0:01:15]} 8. d5 {[%emt 0:01:04]} Na5 {[%emt 0:01:27]} 9. Nd2 {[%emt 0:00:34]} c5 {[%emt 0:01:16]} 10. a3 {[%emt 0:02:32]} Qc7 {[%emt 0:01:17]} 11. Qc2 {[%emt 0:01:53]} Nd7 {[%emt 0:03:17]} 12. Rb1 {[%emt 0:05:58]} Ne5 {[%emt 0:02:34]} 13. b3 {[%emt 0:02:25]} Rb8 {[%emt 0:02:56]} 14. h3 {[%emt 0:07:08]} b5 {[%emt 0:03:10]} 15. f4 {[%emt 0:01:48]} Nd7 {[%emt 0:00:48]} 16. Bb2 {[%emt 0:02:19]} bxc4 {[%emt 0:11:29]} 17. bxc4 {[%emt 0:02:16]} Nb6 {[%emt 0:01:07]} 18. Nd1 {[%emt 0:10:36]} Bd7 {[%emt 0:02:43]} 19. Bxg7 {[%emt 0:00:30]} Kxg7 {[%emt 0:00:03]} 20. Qc3+ {[%emt 0:00:21]} Kg8 {[%emt 0:00:30]} 21. Qxa5 {[%emt 0:00:26]} Qa7 {[%emt 0:01:05]} 22. Nc3 {[%emt 0:01:12]} Rb7 {[%emt 0:01:41]} 23. Rb2 {[%emt 0:01:38]} Rfb8 {[%emt 0:09:39]} 24. Rfb1 {[%emt 0:01:09]} Kg7 {[%emt 0:02:08]} 25. Nce4 {[%emt 0:02:12]} f5 {[%emt 0:09:31]} 26. Nf2 {[%emt 0:01:25]} Kf7 {[%emt 0:01:42]} 27. Nd3 {[%emt 0:03:29]} h6 {[%emt 0:04:55]} 28. Qc3 {[%emt 0:00:47]} Rc7 {[%emt 0:00:44]} 29. Qc1 {[%emt 0:01:28]} a5 {[%emt 0:01:24]} 30. e4 {[%emt 0:00:44]} Rcb7 {[%emt 0:01:24]} 31. e5 {[%emt 0:01:09]} Kg8 {[%emt 0:01:10]} 32. Qc3 {[%emt 0:01:03]} Rc7 {[%emt 0:01:11]} 33. exd6 {[%emt 0:01:02]} exd6 {[%emt 0:00:58]} 34. Qf6 {[%emt 0:00:11]} Rcb7 {[%emt 0:02:41]} 35. Qxg6+ {[%emt 0:00:44]} Kh8 {[%emt 0:00:01]} 36. Qxh6+ {[%emt 0:00:18]} Kg8 {[%emt 0:00:04]} 37. Qxd6 {[%emt 0:00:21]} Be8 {[%emt 0:01:22]} 38. Nxc5 {[%emt 0:00:21]} Rg7 {[%emt 0:00:13]} 39. Rxb6 {[%emt 0:00:31]} Rxg3 {[%emt 0:00:08]} 40. Rxb8 {[%emt 0:00:00]} Qg7 {[%emt 0:00:00]} 41. Rxe8+ {[%emt 0:01:23]} Kh7 {[%emt 0:00:18]} 42. Re7 {[%emt 0:00:23]} Rxg2+ {[%emt 0:00:18]} 43. Kh1 {[%emt 0:00:12]} 1-0

[Event "FIDE WCCC U8 2018"]
[Site "Santiago de Compostela"]
[Date "2018.11.09"]
[Round "5"]
[White "Mamedov, Edgar"]
[Black "Hajdu, Marton Abris"]
[Result "1-0"]
[ECO "A48"]
[WhiteElo "1599"]
[BlackElo "1755"]
[Annotator "NA RC"]
[PlyCount "73"]
[EventDate "2018.11.04"]
[EventType "swiss"]
[EventCountry "ESP"]
[SourceTitle "playchess.com"]
[Source "ChessBase"]
[SourceQuality "1"]
[TimeControl "40/5400+30:1800+30"]

1. d4 {[%emt 0:00:21]} Nf6 {[%emt 0:00:00]} 2. Nf3 {[%emt 0:01:14]} g6 {[%emt 0:00:04]} 3. Bf4 {[%emt 0:00:30]} Bg7 {[%emt 0:00:37]} 4. e3 {[%emt 0:01:13]} d5 {[%emt 0:00:50]} 5. h3 {[%emt 0:00:25]} O-O {[%emt 0:00:29]} 6. c4 {[%emt 0:00:32]} c5 {[%emt 0:00:32]} 7. Nc3 {[%emt 0:03:06]} cxd4 {[%emt 0:00:19]} 8. exd4 {[%emt 0:01:15]} Nc6 {[%emt 0:01:39]} 9. Rc1 {[%emt 0:05:54]} dxc4 {[%emt 0:09:53]} 10. Bxc4 {[%emt 0:00:16]} Na5 {[%emt 0:00:34]} 11. Be2 {[%emt 0:10:08]} Nd5 {[%emt 0:10:41]} 12. Bh2 {[%emt 0:03:38]} Bh6 {[%emt 0:10:08]} 13. Nxd5 {[%emt 0:05:14]} Bxc1 {[%emt 0:05:04]} 14. Nc7 {[%emt 0:00:13]} Bxb2 {[%emt 0:13:56]} 15. Qd2 {[%emt 0:05:20]} Ba3 {[%emt 0:06:50]} 16. Qxa5 {[%emt 0:06:31]} Bd6 {[%emt 0:00:57]} 17. Bxd6 {[%emt 0:01:39]} exd6 {[%emt 0:00:13]} 18. Qc3 {[%emt 0:05:30]} Rb8 {[%emt 0:01:59]} 19. O-O {[%emt 0:06:04]} Bd7 {[%emt 0:02:59]} 20. Nd5 {[%emt 0:03:49]} Bc6 {[%emt 0:06:34]} 21. Ne3 {[%emt 0:04:42]} Rc8 {[%emt 0:01:48]} 22. Qd2 {[%emt 0:02:43]} Be4 {[%emt 0:03:11]} 23. d5 {[%emt 0:06:09]} Bxf3 {[%emt 0:05:15]} 24. Bxf3 {[%emt 0:00:09]} Rc5 {[%emt 0:01:53]} 25. Qb2 {[%emt 0:01:54]} Qc7 {[%emt 0:05:46]} 26. Ng4 {[%emt 0:00:40]} Rc3 {[%emt 0:04:46]} 27. Nf6+ {[%emt 0:01:47]} Kg7 {[%emt 0:00:49]} 28. Ne4 {[%emt 0:00:07]} Rc8 {[%emt 0:00:27]} 29. Rc1 {[%emt 0:01:45]} Qb6 {[%emt 0:00:27]} 30. Qa1 {[%emt 0:00:06]} Qd4 {[%emt 0:01:52]} 31. Rxc3 {[%emt 0:01:18]} f5 {[%emt 0:00:30]} 32. Rc7+ {[%emt 0:00:46]} Rxc7 {[%emt 0:00:17]} 33. Qxd4+ {[%emt 0:00:07]} Kh6 {[%emt 0:00:10]} 34. Nxd6 {[%emt 0:02:44]} b5 {[%emt 0:00:16]} 35. Nxf5+ {[%emt 0:00:10]} Kg5 {[%emt 0:00:09]} 36. h4+ {[%emt 0:00:42]} Kxf5 {[%emt 0:00:19]} 37. g4# {[%emt 0:00:04]} 1-0

[Event "FIDE WCCC U8 2018"]
[Site "Santiago de Compostela"]
[Date "2018.11.09"]
[Round "5"]
[White "Khazhatuly, Alikhan"]
[Black "Finek, Vaclav"]
[Result "0-1"]
[ECO "B76"]
[WhiteElo "1474"]
[BlackElo "1942"]
[Annotator "NA RC"]
[PlyCount "94"]
[EventDate "2018.11.04"]
[EventType "swiss"]
[EventCountry "ESP"]
[SourceTitle "playchess.com"]
[Source "ChessBase"]
[SourceQuality "1"]
[TimeControl "40/5400+30:1800+30"]

{[%evp 12,94,54,53,52,49,50,62,32767,22,25,0,0,0,-12,-12,0,0,-9,0,-9,-12,32767,32767,32767,32767,32767,32767,32767,32767,21,0,0,20,43,19,25,12,36,14,5,32767,16,32767,51,32,91,14,32767,0,0,0,32767,32767,0,32767,-16,0,32767,32767,32767,0,0,-27,0,-87,32767,-133,32767,32767,-108,-201,-183,-173,-121,-388,-310,-386,-379,-747,-545,-643,-146,-796,138]} 1. e4 {[%emt 0:00:00]} c5 {[%emt 0:00:00]} 2. Nf3 {[%emt 0:00:00]} d6 {[%emt 0:00:00]} 3. d4 {[%emt 0:00:00]} cxd4 {[%emt 0:00:00]} 4. Nxd4 {[%emt 0:00:00]} Nf6 {[%emt 0:00:00]} 5. Nc3 {[%emt 0:00:00]} g6 {[%emt 0:00:00]} 6. f3 {[%emt 0:00:00]} Bg7 {[%emt 0:00:02]} 7. Be3 {[%emt 0:00:00]} O-O {[%emt 0:00:10]} 8. Qd2 {[%emt 0:00:00]} Nc6 {[%emt 0:00:10]} 9. O-O-O {[%emt 0:00:07]} d5 {[%emt 0:03:38]} 10. Kb1 {[%emt 0:33:40]} Nxd4 {[%emt 0:14:11] LiveBook: 249 Games} 11. Bxd4 {[%emt 0:01:59]} dxe4 {[%emt 0:03:28]} 12. Bxf6 {[%emt 0:06:53]} Qxd2 {[%emt 0:00:36]} 13. Rxd2 {[%emt 0:00:11]} exf6 {[%emt 0:02:52]} 14. Nxe4 {[%emt 0:03:42]} f5 {[%emt 0:06:57]} 15. Nd6 {[%emt 0:06:41]} Be6 {[%emt 0:01:14]} 16. Bc4 {[%emt 0:02:57]} Bxc4 {[%emt 0:01:38]} 17. Nxc4 {[%emt 0:00:06]} Rad8 {[%emt 0:01:36]} 18. Rhd1 {[%emt 0:02:07]} Rxd2 {[%emt 0:00:07]} 19. Rxd2 {[%emt 0:00:04]} Re8 {[%emt 0:00:13]} 20. a4 {[%emt 0:05:27]} a6 {[%emt 0:14:10]} 21. c3 {[%emt 0:06:15]} b5 {[%emt 0:07:07]} 22. axb5 {[%emt 0:00:10]} axb5 {[%emt 0:00:01]} 23. Na3 {[%emt 0:00:05]} Rb8 {[%emt 0:00:19]} 24. Nc2 {[%emt 0:00:12]} h5 {[%emt 0:01:18]} 25. Ka2 {[%emt 0:04:41]} Be5 {[%emt 0:03:59]} 26. h3 {[%emt 0:00:24]} Kg7 {[%emt 0:01:31]} 27. Rd5 {[%emt 0:06:48]} Bf4 {[%emt 0:05:26]} 28. Kb3 {[%emt 0:11:26]} Kf6 {[%emt 0:02:59]} (28... Re8 $11 {keeps the balance.}) 29. Rd4 {[%emt 0:06:40]} Be5 {[%emt 0:04:14]} 30. Rb4 {[%emt 0:00:44]} Bd6 {[%emt 0:01:36]} 31. Rd4 {[%emt 0:00:10]} Bf8 {[%emt 0:06:53]} 32. Rd3 {[%emt 0:02:53]} Kg5 {[%emt 0:01:50]} 33. Rd4 {[%emt 0:01:25]} Bc5 {[%emt 0:04:04]} 34. Rd5 {[%emt 0:00:06]} Bf8 {[%emt 0:01:39]} 35. Rd4 {[%emt 0:00:10]} Rb7 {[%emt 0:00:17]} 36. g3 {[%emt 0:00:08]} Bc5 {[%emt 0:00:53]} 37. h4+ {[%emt 0:01:05]} Kf6 {[%emt 0:00:17]} 38. Rd3 {[%emt 0:00:13]} (38. Rd2 $1 $11 {remains equal.}) 38... f4 {[%emt 0:02:09]} 39. g4 {[%emt 0:00:38]} hxg4 {[%emt 0:01:39]} 40. fxg4 {[%emt 0:00:00]} Ke5 {[%emt 0:00:00]} 41. Rf3 {[%emt 0:02:12]} (41. Rh3 $17) 41... Ke4 {[%emt 0:06:11]} 42. Ne1 {[%emt 0:00:03]} Rd7 {[%emt 0:01:51]} 43. Kc2 $2 {[%emt 0:00:05]} (43. Rh3) 43... Be3 {[%emt 0:00:40]} 44. Rf1 {[%emt 0:02:29]} Rd2+ {[%emt 0:02:34]} 45. Kb1 $2 {[%emt 0:00:19]} (45. Kb3 f5 46. gxf5 Kxf5 47. Rh1) 45... Rd1+ {[%emt 0:05:34]} 46. Kc2 {[%emt 0:00:38]} Rc1+ {[%emt 0:00:26]} 47. Kb3 {[%emt 0:00:04]} Bd2 $16 {[%emt 0:01:44]} (47... f5 $19 48. h5 gxh5) 0-1

[Event "FIDE WCCC U8 2018"]
[Site "Santiago de Compostela"]
[Date "2018.11.09"]
[Round "5"]
[White "Jaakkola, Niklas"]
[Black "Zverev, Lev"]
[Result "1-0"]
[ECO "C77"]
[WhiteElo "1469"]
[BlackElo "1723"]
[Annotator "NA RC"]
[PlyCount "79"]
[EventDate "2018.11.04"]
[EventType "swiss"]
[EventCountry "ESP"]
[SourceTitle "playchess.com"]
[Source "ChessBase"]
[SourceQuality "1"]
[TimeControl "40/5400+30:1800+30"]

1. e4 {[%emt 0:00:00]} e5 {[%emt 0:00:00]} 2. Nf3 {[%emt 0:00:00]} Nc6 {[%emt 0:00:00]} 3. Bb5 {[%emt 0:00:07]} a6 {[%emt 0:00:00]} 4. Ba4 {[%emt 0:00:19]} Nf6 {[%emt 0:00:07]} 5. d4 {[%emt 0:00:14]} exd4 {[%emt 0:00:16]} 6. e5 {[%emt 0:00:19]} Nd5 {[%emt 0:02:58]} 7. Nxd4 {[%emt 0:10:20]} Nb6 {[%emt 0:24:28]} 8. Nxc6 bxc6 {[%emt 0:00:34]} 9. Bb3 {[%emt 0:02:47]} a5 {[%emt 0:02:21]} 10. a3 {[%emt 0:03:30]} d5 {[%emt 0:03:53]} 11. exd6 {[%emt 0:03:00]} Qxd6 {[%emt 0:00:41]} 12. Qe2+ {[%emt 0:03:05]} Be7 {[%emt 0:02:47]} 13. Bg5 {[%emt 0:20:14]} Ba6 {[%emt 0:00:19]} 14. Qxe7+ Qxe7+ {[%emt 0:00:16]} 15. Bxe7 {[%emt 0:00:56]} Kxe7 {[%emt 0:00:15]} 16. Nd2 {[%emt 0:01:34]} Rhe8 {[%emt 0:01:40]} 17. O-O-O {[%emt 0:02:55]} Kf8 {[%emt 0:00:10]} 18. Rde1 {[%emt 0:04:34]} Red8 {[%emt 0:06:09]} 19. Re4 {[%emt 0:10:10]} Nd5 {[%emt 0:04:15]} 20. Nc4 {[%emt 0:03:06]} Bxc4 {[%emt 0:00:37]} 21. Bxc4 {[%emt 0:00:09]} Re8 {[%emt 0:00:12]} 22. Rhe1 Nf6 {[%emt 0:00:21]} 23. Rxe8+ {[%emt 0:03:27]} Rxe8 {[%emt 0:00:08]} 24. Rxe8+ {[%emt 0:00:43]} Nxe8 {[%emt 0:00:09]} 25. Kd2 {[%emt 0:01:49]} Nd6 {[%emt 0:00:50]} 26. Bd3 {[%emt 0:00:39]} c5 {[%emt 0:00:17]} 27. Kc3 {[%emt 0:02:54]} Ke7 {[%emt 0:00:26]} 28. Kb3 {[%emt 0:01:12]} Nb7 {[%emt 0:01:03]} 29. Ka4 {[%emt 0:00:54]} Kd6 {[%emt 0:00:53]} 30. Ba6 {[%emt 0:00:24]} Nd8 {[%emt 0:00:07]} 31. Kxa5 {[%emt 0:00:24]} Nc6+ {[%emt 0:00:07]} 32. Ka4 {[%emt 0:00:26]} Ne5 {[%emt 0:00:31]} 33. Be2 {[%emt 0:00:31]} Kd5 {[%emt 0:01:52]} 34. Kb5 {[%emt 0:00:25]} c4 {[%emt 0:02:40]} 35. Bf3+ {[%emt 0:02:39]} Kd4 {[%emt 0:00:30]} 36. a4 {[%emt 0:00:19]} g5 {[%emt 0:00:57]} 37. a5 {[%emt 0:00:13]} g4 {[%emt 0:00:05]} 38. Bb7 {[%emt 0:00:30]} Nd3 {[%emt 0:00:24]} 39. c3+ {[%emt 0:00:00]} Ke5 {[%emt 0:00:00]} 40. a6 {Kd5} 1-0

[Event "FIDE WCCC U8 2018"]
[Site "Santiago de Compostela"]
[Date "2018.11.09"]
[Round "5"]
[White "Mammadov, Ziya"]
[Black "Begmuratov, Khumoyun"]
[Result "0-1"]
[ECO "C50"]
[WhiteElo "1446"]
[BlackElo "1880"]
[Annotator "NA RC"]
[PlyCount "82"]
[EventDate "2018.11.04"]
[EventType "swiss"]
[EventCountry "ESP"]
[SourceTitle "playchess.com"]
[Source "ChessBase"]
[SourceQuality "1"]
[TimeControl "40/5400+30:1800+30"]

{[%evp 11,82,11,37,33,25,23,27,32767,-6,-27,-22,-22,-33,-39,-40,-64,32767,-33,-18,-25,0,-18,32767,32767,32767,32767,32767,32767,32767,-72,32767,32767,32767,32767,-85,32767,-154,32767,-124,-145,32767,32767,32767,32767,-219,-245,-176,32767,-133,32767,32767,-175,32767,-145,-144,-151,32767,32767,-175,-271,-211,32767,-318,-323,-361,-702,32767,32767,-778,-960,-856,-1016,-838]} 1. e4 e5 {[%emt 0:00:00]} 2. Nf3 {[%emt 0:00:00]} Nc6 {[%emt 0:00:04]} 3. d4 {[%emt 0:01:38]} exd4 {[%emt 0:01:08]} 4. Bc4 {[%emt 0:00:04]} Be7 {[%emt 0:03:39]} 5. Nxd4 {[%emt 0:01:20]} Nf6 {[%emt 0:09:59]} 6. Nxc6 {[%emt 0:00:51]} dxc6 {[%emt 0:00:29]} 7. Qxd8+ {[%emt 0:02:17]} Bxd8 {[%emt 0:00:07]} 8. O-O {[%emt 0:03:01] C50: Hungarian Defence and Giuoco Pianissimo} (8. f3 Nd7 9. Be3 Bf6 10. Nc3 b5 11. Be2 b4 12. Nd1 a5 13. a3 Bb7 14. axb4 axb4 15. Rxa8+ Bxa8 {½-½ (37) Georgiev,B (2267)-Milchev,N (2422) Sunny Beach 2012}) 8... O-O {[%emt 0:00:51]} 9. e5 {[%emt 0:00:52]} Nd5 {[%emt 0:00:37]} 10. Bd2 $146 {[%emt 0:05:12]} ({Predecessor:} 10. Nd2 Be7 11. Ne4 Bf5 12. Bd3 Rad8 13. a3 Rfe8 14. f4 c5 15. h3 c4 {0-1 (47) Bojic,N-Koester,G Pinneberg 2002}) 10... Be6 {[%emt 0:06:12]} 11. f4 {[%emt 0:06:31]} g6 {[%emt 0:02:21]} 12. Be2 {[%emt 0:04:59]} Be7 {[%emt 0:04:55]} 13. Nc3 {[%emt 0:02:14]} Rad8 {[%emt 0:12:33]} 14. Ne4 {[%emt 0:02:20]} Bf5 {[%emt 0:14:07]} 15. Bf3 {[%emt 0:02:25]} h5 {[%emt 0:02:09]} 16. Rad1 {[%emt 0:01:28]} c5 {[%emt 0:01:55]} 17. c4 {[%emt 0:01:48]} Nb6 {[%emt 0:00:06]} 18. b3 {[%emt 0:01:13]} Rd4 {[%emt 0:00:53]} 19. Ng3 {[%emt 0:03:31]} Bc2 {[%emt 0:00:11]} 20. Be3 {[%emt 0:16:54]} Bxd1 {[%emt 0:00:27]} 21. Bxd1 {[%emt 0:00:13]} Rd3 {[%emt 0:00:50]} 22. Re1 {[%emt 0:00:13]} f5 {[%emt 0:08:27]} 23. Bf3 {[%emt 0:07:09]} c6 {[%emt 0:03:40]} 24. Nf1 {[%emt 0:02:50]} Nc8 {[%emt 0:03:17]} 25. h3 {[%emt 0:00:31]} h4 {[%emt 0:00:54]} 26. g4 {[%emt 0:00:33]} hxg3 {[%emt 0:00:34]} 27. Nxg3 {[%emt 0:00:10]} Kf7 {[%emt 0:04:04]} 28. Kf2 {[%emt 0:01:59]} Ke6 {[%emt 0:00:37]} 29. Ke2 {[%emt 0:01:53]} Rdd8 {[%emt 0:01:21]} 30. Rg1 Rh8 {[%emt 0:01:09]} 31. Nh1 {[%emt 0:09:19]} Rh6 {[%emt 0:03:13]} 32. Nf2 {[%emt 0:01:04]} Nb6 {[%emt 0:00:59]} 33. Nd3 {[%emt 0:00:24]} Nd7 {[%emt 0:00:07]} 34. a3 {[%emt 0:00:15]} a5 {[%emt 0:01:50]} 35. Bd2 {[%emt 0:01:58]} (35. Bg2 $17) 35... Nf8 {[%emt 0:01:08]} 36. Bxa5 {[%emt 0:00:57]} Ra8 {[%emt 0:00:10]} 37. b4 {[%emt 0:00:17]} Rxh3 {[%emt 0:01:35]} 38. Bb6 $2 {[%emt 0:01:13]} (38. Kf2) 38... Rxa3 {[%emt 0:02:19]} 39. Nxc5+ {[%emt 0:01:57]} Kf7 {[%emt 0:00:31]} 40. Bg2 {[%emt 0:00:00]} Ra2+ {[%emt 0:00:00]} 41. Kd1 {[%emt 0:02:34]} Rh2 $19 {[%emt 0:00:56]} 0-1

[Event "FIDE WCCC U8 2018"]
[Site "Santiago de Compostela"]
[Date "2018.11.09"]
[Round "5"]
[White "Villa Tornero, Alex"]
[Black "Golovchenko, Bogdan"]
[Result "1/2-1/2"]
[ECO "B24"]
[WhiteElo "1441"]
[BlackElo "1556"]
[Annotator "NA RC"]
[PlyCount "76"]
[EventDate "2018.11.04"]
[EventType "swiss"]
[EventCountry "ESP"]
[SourceTitle "playchess.com"]
[Source "ChessBase"]
[SourceQuality "1"]
[TimeControl "40/5400+30:1800+30"]

1. e4 {[%emt 0:00:00]} c5 {[%emt 0:00:00]} 2. Nc3 {[%emt 0:00:12]} Nc6 {[%emt 0:00:03]} 3. Bb5 {[%emt 0:01:08]} d6 {[%emt 0:01:29]} 4. Nge2 {[%emt 0:17:15]} Nf6 {[%emt 0:01:22]} 5. O-O {[%emt 0:05:22]} g6 {[%emt 0:01:10]} 6. d3 {[%emt 0:00:54]} Bg7 {[%emt 0:00:33]} 7. f4 {[%emt 0:09:14]} O-O {[%emt 0:06:27]} 8. Qe1 {[%emt 0:05:42]} Nb4 {[%emt 0:05:33]} 9. Ba4 {[%emt 0:03:48]} Bd7 {[%emt 0:00:50]} 10. Bb3 {[%emt 0:01:01]} a5 {[%emt 0:05:55]} 11. a4 {[%emt 0:06:49]} Qb6 {[%emt 0:02:46]} 12. Kh1 {[%emt 0:03:07]} Be6 {[%emt 0:03:27]} 13. Bxe6 {[%emt 0:05:58]} fxe6 {[%emt 0:00:02]} 14. Qd1 {[%emt 0:02:12]} d5 {[%emt 0:07:24]} 15. e5 {[%emt 0:00:30]} Nd7 {[%emt 0:00:34]} 16. Nb5 {[%emt 0:06:47]} Rf7 {[%emt 0:01:45]} 17. c3 {[%emt 0:03:43]} Nc6 {[%emt 0:00:07]} 18. Be3 {[%emt 0:01:02]} Raf8 {[%emt 0:00:49]} 19. Rb1 {[%emt 0:03:46]} Qd8 {[%emt 0:02:17]} 20. d4 {[%emt 0:02:19]} c4 {[%emt 0:04:43]} 21. b3 {[%emt 0:00:08]} Nb6 {[%emt 0:01:02]} 22. Na3 {[%emt 0:01:46]} Qc7 {[%emt 0:05:50]} 23. Nb5 {[%emt 0:00:36]} Qc8 {[%emt 0:01:05]} 24. b4 {[%emt 0:01:24]} axb4 {[%emt 0:03:36]} 25. cxb4 {[%emt 0:00:14]} Bh6 {[%emt 0:00:51]} 26. a5 {[%emt 0:00:22]} Na8 {[%emt 0:00:30]} 27. g3 {[%emt 0:00:14]} Nc7 {[%emt 0:00:31]} 28. Nxc7 {[%emt 0:00:19]} Qxc7 {[%emt 0:00:01]} 29. Nc3 {[%emt 0:00:09]} Na7 {[%emt 0:00:22]} 30. Qa4 {[%emt 0:00:35]} g5 {[%emt 0:00:49]} 31. Qd1 {[%emt 0:01:31]} gxf4 {[%emt 0:01:19]} 32. Qg4+ {[%emt 0:01:02]} Kh8 {[%emt 0:00:57]} 33. Bxf4 {[%emt 0:01:17]} Bxf4 {[%emt 0:01:36]} 34. Rxf4 {[%emt 0:00:46]} Qc8 {[%emt 0:04:35]} 35. b5 {[%emt 0:04:40]} Rxf4 {[%emt 0:02:30]} 36. gxf4 {[%emt 0:00:09]} Rg8 {[%emt 0:00:20]} 37. Qh3 {[%emt 0:00:37]} Rg6 {[%emt 0:03:25]} 38. b6 {[%emt 0:01:09]} Nc6 {[%emt 0:00:53]} 1/2-1/2